Workbook

Sheet Лист1
A1: Школа | C1: МБОУ ПМО СО "Первомайская ООШ" | F1: Утвердил: | G1: должность | H1: Директор школы
A2: Типовое примерное меню приготавливаемых блюд | G2: фамилия | H2: Карелина Н.Я.
A3: Возрастная категория | E3: 7-11 лет | G3: дата | H3: 30 | I3: 08 | J3: 2025
H4: день | I4: месяц | J4: год
A5: Неделя | B5: День недели | C5: Прием пищи | D5: Раздел меню | E5: Блюда | F5: Вес блюда, г | G5: Белки | H5: Жиры | I5: Углеводы | J5: Калорийность | K5: № рецептуры | L5: Цена
A6: 1 | B6: 1 | C6: Завтрак | D6: гор.блюдо | E6: Каша манная | F6: 200 | G6: 5.3 | H6: 5.7 | I6: 25.3 | J6: 174.3 | K6: 311 | L6: 12.2
D7: закуска | E7: Бутерброд с маслом, сыром | F7: 60 | G7: 5.95 | H7: 15.45 | I7: 14.9 | J7: 223.25 | K7: 3 | L7: 24.8
D8: гор.напиток | E8: Чай с сахаром | F8: 200 | G8: 0.2 | H8: 0 | I8: 6.4 | J8: 26.8 | K8: 685 | L8: 1.2
D9: хлеб | E9: Хлеб пшеничный | F9: 40 | G9: 3.06 | H9: 0.33 | I9: 19.66 | J9: 93.73 | K9: пром. | L9: 2.48
D10: фрукты
D13: итого | F13: =SUM(F6:F12) -> 500 | G13: =SUM(G6:G12) -> 14.51 | H13: 21.48 | I13: 66.26 | J13: 518.08 | L13: =SUM(L6:L12) -> 40.68
A14: =A6 -> 1 | B14: =B6 -> 1 | C14: Обед | D14: закуска | E14: Салат из свежих помидоров и огурцов | F14: 60 | G14: 0.6 | H14: 3.1 | I14: 1.8 | J14: 37.6 | K14: 20 | L14: 9.22
D15: 1 блюдо | E15: Борщ с фасолью со сметаной | F15: 200 | G15: 6.08 | H15: 5.82 | I15: 12.7 | J15: 127.58 | K15: 116 | L15: 18.99
D16: 2 блюдо | E16: Жаркое по домашнему | F16: 200 | G16: 20.1 | H16: 18.7 | I16: 17.2 | J16: 318 | K16: 436 | L16: 77.03
D17: гарнир
D18: напиток | E18: Компот из сухофруктов | F18: 200 | G18: 0.5 | H18: 0 | I18: 19.8 | J18: 81 | K18: 639 | L18: 5.05
D19: хлеб бел. | E19: Хлеб пшеничный | F19: 60 | G19: 4.6 | H19: 0.5 | I19: 29.5 | J19: 140.6 | K19: пром. | L19: 3.72
D20: хлеб черн. | E20: Хлеб ржаной | F20: 40 | G20: 2.66 | H20: 0.53 | I20: 13.33 | J20: 68.26 | K20: пром. | L20: 2.8
D23: итого | F23: =SUM(F14:F22) -> 760 | G23: =SUM(G14:G22) -> 34.54 | H23: 28.65 | I23: 94.33 | J23: 773.04 | L23: =SUM(L14:L22) -> 116.81
A24: =A6 -> 1 | B24: =B6 -> 1 | C24: Итого за день: | F24: =F13+F23 -> 1260 | G24: =G13+G23 -> 49.05 | H24: 50.13 | I24: 160.59 | J24: 1291.12 | L24: =L13+L23 -> 157.49
A25: 1 | B25: 2 | C25: Завтрак | D25: гор.блюдо | E25: Омлет натуральный | F25: 150 | G25: 12.7 | H25: 18 | I25: 3.3 | J25: 225.5 | K25: 340 | L25: 42.27
D26: закуска | E26: Бутерброд с повидлом | F26: 60 | G26: 2.6 | H26: 0.25 | I26: 36.35 | J26: 157.3 | K26: 2 | L26: 6.36
D27: гор.напиток | E27: Какао с молоком | F27: 200 | G27: 4.6 | H27: 3.6 | I27: 12.6 | J27: 100.4 | K27: 693 | L27: 11.44
D28: хлеб | E28: Хлеб пшеничный | F28: 40 | G28: 3.06 | H28: 0.33 | I28: 19.66 | J28: 93.73 | K28: пром. | L28: 2.48
D29: фрукты
D30: закуска | E30: Нарезка из огурцов соленых (порционно) | F30: 60 | G30: 0.5 | H30: 0.1 | I30: 1.5 | J30: 4.25 | K30: 576
D32: итого | F32: =SUM(F25:F31) -> 510 | G32: =SUM(G25:G31) -> 23.46 | H32: =SUM(H25:H31) -> 22.28 | I32: =SUM(I25:I31) -> 73.41 | J32: =SUM(J25:J31) -> 581.18 | L32: 62.55
A33: =A25 -> 1 | B33: =B25 -> 2 | C33: Обед | D33: закуска | E33: Салат "Бурячок" | F33: 60 | G33: 0.65 | H33: 2.7 | I33: 3.05 | J33: 38.9 | K33: 50 | L33: 14.89
D34: 1 блюдо | E34: Суп с макаронными изделиями | F34: 200 | G34: 5.16 | H34: 2.78 | I34: 18.5 | J34: 119.6 | K34: 140 | L34: 19.55
D35: 2 блюдо | E35: Гуляш | F35: 90 | G35: 15.18 | H35: 5.2 | I35: 3.6 | J35: 208.8 | K35: 437 | L35: 58.56
D36: гарнир | E36: Греча рассыпчатая | F36: 150 | G36: 8.2 | H36: 6.3 | I36: 35.9 | J36: 233.7 | K36: 297 | L36: 7.62
D37: напиток | E37: Компот из кураги | F37: 200 | G37: 1 | H37: 0.1 | I37: 15.7 | J37: 66.9 | K37: 638 | L37: 9.46
D38: хлеб бел. | E38: Хлеб пшеничный | F38: 60 | G38: 4.6 | H38: 0.5 | I38: 29.5 | J38: 140.6 | K38: пром. | L38: 3.72
D39: хлеб черн. | E39: Хлеб ржаной | F39: 40 | G39: 2.66 | H39: 0.53 | I39: 13.33 | J39: 68.26 | K39: пром. | L39: 2.8
D42: итого | F42: =SUM(F33:F41) -> 800 | G42: =SUM(G33:G41) -> 37.45 | H42: =SUM(H33:H41) -> 18.11 | I42: =SUM(I33:I41) -> 119.58 | J42: =SUM(J33:J41) -> 876.76 | L42: 116.6
A43: =A25 -> 1 | B43: =B25 -> 2 | C43: Итого за день: | F43: =F32+F42 -> 1310 | G43: =G32+G42 -> 60.91 | H43: =H32+H42 -> 40.39 | I43: =I32+I42 -> 192.99 | J43: =J32+J42 -> 1457.94 | L43: 179.15
A44: 1 | B44: 3 | C44: Завтрак | D44: гор.блюдо | E44: Суп молочный с макаронными изделиями | F44: 200 | G44: 5.5 | H44: 4.54 | I44: 17.86 | J44: 134.22 | K44: 160 | L44: 11.25
D45: закуска | E45: Бутерброд с маслом | F45: 60 | G45: 3.26 | H45: 14.73 | I45: 19.86 | J45: 225.93 | K45: 1 | L45: 16.68
D46: гор.напиток | E46: Кофейный напиток | F46: 200 | G46: 3.8 | H46: 2.9 | I46: 11.3 | J46: 86 | K46: 692 | L46: 9.89
D47: хлеб | E47: Хлеб пшеничный | F47: 40 | G47: 3.06 | H47: 0.33 | I47: 19.66 | J47: 93.73 | K47: пром. | L47: 2.48
D48: фрукты
D51: итого | F51: =SUM(F44:F50) -> 500 | G51: =SUM(G44:G50) -> 15.62 | H51: =SUM(H44:H50) -> 22.5 | I51: =SUM(I44:I50) -> 68.68 | J51: =SUM(J44:J50) -> 539.88 | L51: 40.3
A52: =A44 -> 1 | B52: =B44 -> 3 | C52: Обед | D52: закуска | E52: Салат из картофеля с сельдью | F52: 60 | G52: 4.56 | H52: 5.04 | I52: 4.9 | J52: 86.52 | K52: 55 | L52: 19.48
D53: 1 блюдо | E53: Суп из овощей | F53: 200 | G53: 8.64 | H53: 6.06 | I53: 13.92 | J53: 144.82 | K53: 135 | L53: 9.43
D54: 2 блюдо | E54: Плов из курицы | F54: 200 | G54: 27.3 | H54: 3.1 | I54: 33.2 | J54: 314.6 | K54: 443 | L54: 50.72
D55: гарнир
D56: напиток | E56: Компот из свежих плодов | F56: 200 | G56: 0.15 | H56: 0.14 | I56: 9.93 | J56: 41.5 | K56: 631 | L56: 8.73
D57: хлеб бел. | E57: Хлеб пшеничный | F57: 60 | G57: 4.6 | H57: 0.5 | I57: 29.5 | J57: 140.6 | K57: пром. | L57: 3.72
D58: хлеб черн. | E58: Хлеб ржаной | F58: 40 | G58: 2.66 | H58: 0.53 | I58: 13.33 | J58: 68.29 | K58: пром. | L58: 2.8
D61: итого | F61: =SUM(F52:F60) -> 760 | G61: =SUM(G52:G60) -> 47.91 | H61: =SUM(H52:H60) -> 15.37 | I61: =SUM(I52:I60) -> 104.78 | J61: =SUM(J52:J60) -> 796.33 | L61: 94.88
A62: =A44 -> 1 | B62: =B44 -> 3 | C62: Итого за день: | F62: =F51+F61 -> 1260 | G62: =G51+G61 -> 63.53 | H62: =H51+H61 -> 37.87 | I62: =I51+I61 -> 173.46 | J62: =J51+J61 -> 1336.21 | L62: 135.18
A63: 1 | B63: 4 | C63: Завтрак | D63: гор.блюдо | E63: Каша геркулесовая | F63: 200 | G63: 6.8 | H63: 7.5 | I63: 24.7 | J63: 192.6 | K63: 302 | L63: 12.93
D64: закуска | E64: Бутерброд с маслом | F64: 60 | G64: 3.26 | H64: 14.73 | I64: 19.86 | J64: 225.93 | K64: 1 | L64: 16.68
D65: гор.напиток | E65: Кофейный напиток | F65: 200 | G65: 3.8 | H65: 2.9 | I65: 11.3 | J65: 86 | K65: 692 | L65: 9.89
D66: хлеб | E66: Хлеб пшеничный | F66: 40 | G66: 3.06 | H66: 0.33 | I66: 19.66 | J66: 93.73 | K66: пром. | L66: 2.48
D67: фрукты
D70: итого | F70: =SUM(F63:F69) -> 500 | G70: =SUM(G63:G69) -> 16.92 | H70: =SUM(H63:H69) -> 25.46 | I70: =SUM(I63:I69) -> 75.52 | J70: =SUM(J63:J69) -> 598.26 | L70: 41.98
A71: =A63 -> 1 | B71: =B63 -> 4 | C71: Обед | D71: закуска | E71: Нарезка из огурцов соленых (порционно) | F71: 60 | G71: 0.5 | H71: 0.1 | I71: 1.5 | J71: 4.25 | K71: 576 | L71: 25.38
D72: 1 блюдо | E72: Суп картофельный с бобовыми | F72: 200 | G72: 6.68 | H72: 4.6 | I72: 16.28 | J72: 133.14 | K72: 139 | L72: 19.25
D73: 2 блюдо | E73: Котлета из птицы (куриная) | F73: 90 | G73: 17.28 | H73: 3.84 | I73: 12.12 | J73: 151.68 | K73: 501 | L73: 24.4
D74: гарнир | E74: Макароны отварные | F74: 150 | G74: 5.4 | H74: 4.9 | I74: 32.8 | J74: 196.8 | K74: 332 | L74: 7.63
D75: напиток | E75: Кисель | F75: 200 | G75: 0 | H75: 0 | I75: 15.3 | J75: 49.6 | K75: 648 | L75: 4.52
D76: хлеб бел. | E76: Хлеб пшеничный | F76: 60 | G76: 4.6 | H76: 0.5 | I76: 29.5 | J76: 140.6 | K76: пром. | L76: 3.72
D77: хлеб черн. | E77: Хлеб ржаной | F77: 40 | G77: 2.66 | H77: 0.53 | I77: 13.33 | J77: 68.26 | K77: пром. | L77: 2.8
D78: соус | E78: Соус сметанный с томатом | F78: 30 | G78: 0.55 | H78: 2.46 | I78: 1.27 | J78: 29.56 | K78: 601 | L78: 9.33
D80: итого | F80: =SUM(F71:F79) -> 830 | G80: =SUM(G71:G79) -> 37.67 | H80: =SUM(H71:H79) -> 16.93 | I80: =SUM(I71:I79) -> 122.1 | J80: =SUM(J71:J79) -> 773.89 | L80: 97.03
A81: =A63 -> 1 | B81: =B63 -> 4 | C81: Итого за день: | F81: =F70+F80 -> 1330 | G81: =G70+G80 -> 54.59 | H81: =H70+H80 -> 42.39 | I81: =I70+I80 -> 197.62 | J81: =J70+J80 -> 1372.15 | L81: 139.01
A82: 1 | B82: 5 | C82: Завтрак | D82: гор.блюдо | E82: Каша рисовая на молоке | F82: 200 | G82: 5.3 | H82: 5.4 | I82: 28.7 | J82: 184.5 | K82: 302 | L82: 14.37
D83: закуска | E83: Бутерброд с сыром, маслом | F83: 60 | G83: 5.95 | H83: 5.45 | I83: 14.9 | J83: 223.25 | K83: 3 | L83: 24.1
D84: гор.напиток | E84: Чай с молоком | F84: 200 | G84: 1.6 | H84: 1.1 | I84: 8.7 | J84: 50.9 | K84: 685 | L84: 4.34
D85: хлеб | E85: Хлеб пшеничный | F85: 40 | G85: 3.06 | H85: 0.33 | I85: 19.66 | J85: 93.73 | K85: пром. | L85: 2.48
D86: фрукты
D89: итого | F89: =SUM(F82:F88) -> 500 | G89: =SUM(G82:G88) -> 15.91 | H89: =SUM(H82:H88) -> 12.28 | I89: =SUM(I82:I88) -> 71.96 | J89: =SUM(J82:J88) -> 552.38 | L89: 45.29
A90: =A82 -> 1 | B90: =B82 -> 5 | C90: Обед | D90: закуска | E90: Овощная нарезка соленый огурец, зеленый горошек | F90: 60 | G90: 1.1 | H90: 0.1 | I90: 2.5 | J90: 13.17 | K90: 576 | L90: 34.8
D91: 1 блюдо | E91: Рассольник Ленинградский | F91: 200 | G91: 4.74 | H91: 5.8 | I91: 13.62 | J91: 125.52 | K91: 132 | L91: 28.2
D92: 2 блюдо | E92: Тефтели из мяса | F92: 90 | G92: 12.3 | H92: 10.65 | I92: 7.5 | J92: 175.65 | K92: 464 | L92: 45.21
D93: гарнир | E93: Картофельное пюре | F93: 150 | G93: 3.2 | H93: 5.2 | I93: 19.8 | J93: 139.4 | K93: 520 | L93: 14.89
D94: напиток | E94: Компот из изюма | F94: 200 | G94: 0.4 | H94: 0.1 | I94: 18.4 | J94: 75.8 | K94: 638 | L94: 10.74
D95: хлеб бел. | E95: Хлеб пшеничный | F95: 60 | G95: 4.6 | H95: 0.5 | I95: 29.5 | J95: 140.6 | K95: пром. | L95: 3.72
D96: хлеб черн. | E96: Хлеб ржаной | F96: 40 | G96: 2.66 | H96: 0.53 | I96: 13.33 | J96: 68.26 | K96: пром. | L96: 2.8
D97: соус | E97: Соус томатный | F97: 30 | G97: 0.32 | H97: 1.1 | I97: 2.08 | J97: 20.07 | K97: 587 | L97: 3.5
D99: итого | F99: =SUM(F90:F98) -> 830 | G99: =SUM(G90:G98) -> 29.32 | H99: =SUM(H90:H98) -> 23.98 | I99: =SUM(I90:I98) -> 106.73 | J99: =SUM(J90:J98) -> 758.47 | L99: 143.86
A100: =A82 -> 1 | B100: =B82 -> 5 | C100: Итого за день: | F100: =F89+F99 -> 1330 | G100: =G89+G99 -> 45.23 | H100: =H89+H99 -> 36.26 | I100: =I89+I99 -> 178.69 | J100: =J89+J99 -> 1310.85 | L100: 189.15
A101: 2 | B101: 1 | C101: Завтрак | D101: гор.блюдо | E101: Каша пшеничная | F101: 200 | G101: 8.2 | H101: 9.2 | I101: 38.6 | J101: 270.3 | K101: 311 | L101: 16.03
D102: закуска | E102: Бутерброд с сыром | F102: 60 | G102: 7.72 | H102: 6.19 | I102: 19.66 | J102: 165.46 | K102: 4 | L102: 16.98
D103: гор.напиток | E103: Какао с молоком | F103: 200 | G103: 4.6 | H103: 3.6 | I103: 12.6 | J103: 100.4 | K103: 382 | L103: 10.53
D104: хлеб | E104: Хлеб пшеничный | F104: 40 | G104: 3.06 | H104: 0.33 | I104: 19.66 | J104: 93.73 | K104: пром. | L104: 2.48
D105: фрукты
D108: итого | F108: =SUM(F101:F107) -> 500 | G108: =SUM(G101:G107) -> 23.58 | H108: 19.32 | I108: 90.52 | J108: 629.89 | L108: =SUM(L101:L107) -> 46.02
A109: =A101 -> 2 | B109: =B101 -> 1 | C109: Обед | D109: закуска | E109: Огурец свежий порционно | F109: 60 | G109: 0.5 | H109: 0.1 | I109: 1.5 | J109: 4.25 | K109: 576 | L109: 9
D110: 1 блюдо | E110: Суп с рыбными консервами | F110: 200 | G110: 7.9 | H110: 3.84 | I110: 12.44 | J110: 115.66 | K110: 181 | L110: 29.48
D111: 2 блюдо | E111: Гуляш | F111: 90 | G111: 15.18 | H111: 14.73 | I111: 3.6 | J111: 208.8 | K111: 437 | L111: 58.56
D112: гарнир | E112: Картофельное пюре | F112: 150 | G112: 3.2 | H112: 5.2 | I112: 19.8 | J112: 139.4 | K112: 520 | L112: 14.89
D113: напиток | E113: Компот из кураги | F113: 200 | G113: 1 | H113: 0.1 | I113: 15.7 | J113: 66.9 | K113: 638 | L113: 8.39
D114: хлеб бел. | E114: Хлеб пшеничный | F114: 60 | G114: 4.6 | H114: 0.5 | I114: 29.5 | J114: 140.6 | K114: пром. | L114: 3.72
D115: хлеб черн. | E115: Хлеб ржаной | F115: 40 | G115: 2.66 | H115: 0.53 | I115: 13.33 | J115: 68.26 | K115: пром. | L115: 2.8
D118: итого | F118: =SUM(F109:F117) -> 800 | G118: =SUM(G109:G117) -> 35.04 | H118: 25 | I118: 95.87 | J118: 743.87 | L118: =SUM(L109:L117) -> 126.84
A119: =A101 -> 2 | B119: =B101 -> 1 | C119: Итого за день: | F119: =F108+F118 -> 1300 | G119: =G108+G118 -> 58.62 | H119: =H108+H118 -> 44.32 | I119: =I108+I118 -> 186.39 | J119: =J108+J118 -> 1373.76 | L119: 172.86
A120: 2 | B120: 2 | C120: Завтрак | D120: гор.блюдо | E120: Каша "Дружба" | F120: 200 | G120: 5 | H120: 5.8 | I120: 24.1 | J120: 168.9 | K120: 312 | L120: 12.78
D121: закуска | E121: Бутерброд с маслом | F121: 60 | G121: 3.26 | H121: 14.73 | I121: 19.86 | J121: 225.93 | K121: 1 | L121: 16.68
D122: гор.напиток | E122: Чай с лимоном | F122: 200 | G122: 0.3 | H122: 0 | I122: 6.7 | J122: 27.9 | K122: 686 | L122: 2.55
D123: хлеб | E123: Хлеб пшеничный | F123: 40 | G123: 3.06 | H123: 0.33 | I123: 19.66 | J123: 93.73 | K123: пром. | L123: 2.48
D124: фрукты
D127: итого | F127: =SUM(F120:F126) -> 500 | G127: =SUM(G120:G126) -> 11.62 | H127: 20.86 | I127: 70.32 | J127: 516.46 | L127: =SUM(L120:L126) -> 34.49
A128: =A120 -> 2 | B128: =B120 -> 2 | C128: Обед | D128: закуска | E128: Салат из разных овощей | F128: 60 | G128: 0.85 | H128: 7.91 | I128: 4.46 | J128: 92.9 | K128: 56 | L128: 17.03
D129: 1 блюдо | E129: Борщ со свежей капустой и мясом | F129: 200 | G129: 4.56 | H129: 4.78 | I129: 7.78 | J129: 92.42 | K129: 110 | L129: 19.67
D130: 2 блюдо | E130: Биточек из курицы | F130: 90 | G130: 17.28 | H130: 3.84 | I130: 12.12 | J130: 151.68 | K130: 502 | L130: 24.4
D131: гарнир | E131: Макароны отварные | F131: 150 | G131: 5.4 | H131: 4.9 | I131: 32.8 | J131: 196.8 | K131: 688 | L131: 7.63
D132: напиток | E132: Сок | F132: 200 | G132: 0.3 | H132: 0 | I132: 18.5 | J132: 72 | K132: пром. | L132: 30
D133: хлеб бел. | E133: Хлеб пшеничный | F133: 60 | G133: 4.6 | H133: 0.5 | I133: 29.5 | J133: 140.6 | K133: пром. | L133: 3.72
D134: хлеб черн. | E134: Хлеб ржаной | F134: 40 | G134: 2.66 | H134: 0.53 | I134: 13.33 | J134: 68.26 | K134: пром. | L134: 2.8
D135: соус | E135: Соус сметанный с томатом | F135: 30 | G135: 0.55 | H135: 2.46 | I135: 1.27 | J135: 29.56 | K135: 601 | L135: 9.29
D137: итого | F137: =SUM(F128:F136) -> 830 | G137: =SUM(G128:G136) -> 36.2 | H137: 24.92 | I137: 119.76 | J137: 844.22 | L137: =SUM(L128:L136) -> 114.54
A138: =A120 -> 2 | B138: =B120 -> 2 | C138: Итого за день: | F138: =F127+F137 -> 1330 | G138: =G127+G137 -> 47.82 | H138: =H127+H137 -> 45.78 | I138: =I127+I137 -> 190.08 | J138: =J127+J137 -> 1360.68 | L138: 149.03
A139: 2 | B139: 3 | C139: Завтрак | D139: гор.блюдо | E139: Каша манная на молоко | F139: 200 | G139: 5.3 | H139: 5.7 | I139: 25.3 | J139: 174.3 | K139: 311 | L139: 12.2
D140: закуска | E140: Бутерброд с маслом и сыром | F140: 60 | G140: 5.95 | H140: 5.45 | I140: 14.9 | J140: 223.25 | K140: 3 | L140: 24.1
D141: гор.напиток | E141: Чай с сахаром | F141: 200 | G141: 0.2 | H141: 0 | I141: 6.4 | J141: 26.8 | K141: 685 | L141: 1.2
D142: хлеб | E142: Хлеб пшеничный | F142: 40 | G142: 3.06 | H142: 0.33 | I142: 19.66 | J142: 93.73 | K142: пром. | L142: 2.48
D143: фрукты
D146: итого | F146: =SUM(F139:F145) -> 500 | G146: =SUM(G139:G145) -> 14.51 | H146: 11.48 | I146: 66.26 | J146: 518.08 | L146: =SUM(L139:L145) -> 39.98
A147: =A139 -> 2 | B147: =B139 -> 3 | C147: Обед | D147: закуска | E147: Салат из отварной свеклы с сыром | F147: 60 | G147: 4.38 | H147: 5.72 | I147: 4.05 | J147: 86.21 | K147: 50 | L147: 17.33
D148: 1 блюдо | E148: Суп-лапша домашняя | F148: 200 | G148: 6 | H148: 6.1 | I148: 11.3 | J148: 126.4 | K148: 148 | L148: 12.48
D149: 2 блюдо | E149: Пудинг из творога со сгущенным молоком | F149: 175 | G149: 22.1 | H149: 17.1 | I149: 35.6 | J149: 385.2 | K149: 362 | L149: 55.46
D150: гарнир
D151: напиток | E151: Витаминизированный напиток | F151: 200 | G151: 0 | H151: 0 | I151: 19.4 | J151: 33 | K151: ТТК | L151: 9.6
D152: хлеб бел. | E152: Хлеб пшеничный | F152: 60 | G152: 4.6 | H152: 0.5 | I152: 29.5 | J152: 140.6 | K152: пром. | L152: 3.72
D153: хлеб черн. | E153: Хлеб ржаной | F153: 40 | G153: 2.66 | H153: 0.53 | I153: 13.33 | J153: 68.26 | K153: пром. | L153: 2.8
D156: итого | F156: =SUM(F147:F155) -> 735 | G156: =SUM(G147:G155) -> 39.74 | H156: 29.95 | I156: 113.18 | J156: 839.67 | L156: =SUM(L147:L155) -> 101.39
A157: =A139 -> 2 | B157: =B139 -> 3 | C157: Итого за день: | F157: =F146+F156 -> 1235 | G157: =G146+G156 -> 54.25 | H157: =H146+H156 -> 41.43 | I157: =I146+I156 -> 179.44 | J157: =J146+J156 -> 1357.75 | L157: 141.37
A158: 2 | B158: 4 | C158: Завтрак | D158: гор.блюдо | E158: Каша пшенная | F158: 200 | G158: 8.3 | H158: 10.2 | I158: 37.6 | J158: 274.9 | K158: 302 | L158: 10.61
D159: закуска | E159: Бутерброд с сыром | F159: 60 | G159: 7.72 | H159: 6.19 | I159: 19.66 | J159: 165.46 | K159: 4 | L159: 17
D160: гор.напиток | E160: Чай с лимоном | F160: 200 | G160: 0.3 | H160: 0 | I160: 6.7 | J160: 27.9 | K160: 686 | L160: 2.55
D161: хлеб | E161: Хлеб пшеничный | F161: 40 | G161: 3.06 | H161: 0.33 | I161: 19.66 | J161: 93.73 | K161: пром. | L161: 2.48
D162: фрукты
D165: итого | F165: =SUM(F158:F164) -> 500 | G165: =SUM(G158:G164) -> 19.38 | H165: 16.72 | I165: 83.62 | J165: 561.99 | L165: =SUM(L158:L164) -> 32.64
A166: =A158 -> 2 | B166: =B158 -> 4 | C166: Обед | D166: закуска | E166: Салат из капусты с морковью | F166: 80 | G166: 2.13 | H166: 8.13 | I166: 8.26 | J166: 114.27 | K166: 43 | L166: 9.22
D167: 1 блюдо | E167: Щи из свежей капусты с картофелем | F167: 200 | G167: 4.56 | H167: 7.14 | I167: 6.73 | J167: 111.99 | K167: 124 | L167: 17.29
D168: 2 блюдо | E168: Котлета рыбная | F168: 90 | G168: 12.78 | H168: 2.34 | I168: 7.74 | J168: 102.78 | K168: 388 | L168: 14.98
D169: гарнир | E169: Картофельное пюре | F169: 150 | G169: 3.2 | H169: 5.2 | I169: 19.8 | J169: 139.4 | K169: 520 | L169: 14.89
D170: напиток | E170: Отвар из шиповника | F170: 200 | G170: 0.4 | H170: 0 | I170: 23.6 | J170: 94 | K170: 705 | L170: 6.7
D171: хлеб бел. | E171: Хлеб пшеничный | F171: 60 | G171: 4.6 | H171: 0.5 | I171: 29.5 | J171: 140.6 | K171: пром. | L171: 3.72
D172: хлеб черн. | E172: Хлеб ржаной | F172: 40 | G172: 2.66 | H172: 0.53 | I172: 13.33 | J172: 68.26 | K172: пром. | L172: 2.8
D175: итого | F175: =SUM(F166:F174) -> 820 | G175: =SUM(G166:G174) -> 30.33 | H175: 23.84 | I175: 108.96 | J175: 771.3 | L175: =SUM(L166:L174) -> 69.6
A176: =A158 -> 2 | B176: =B158 -> 4 | C176: Итого за день: | F176: =F165+F175 -> 1320 | G176: =G165+G175 -> 49.71 | H176: =H165+H175 -> 40.56 | I176: =I165+I175 -> 192.58 | J176: =J165+J175 -> 1333.29 | L176: 102.24
A177: 2 | B177: 5 | C177: Завтрак | D177: гор.блюдо | E177: Макароны с сыром | F177: 200 | G177: 10.53 | H177: 9.06 | I177: 38.13 | J177: 276.93 | K177: 333 | L177: 21.9
D178: закуска | E178: Бутерброд с повидлом | F178: 60 | G178: 2.42 | H178: 0.25 | I178: 34.25 | J178: 145.3 | K178: 2 | L178: 6.36
D179: гор.напиток | E179: Молоко кипяченое | F179: 200 | G179: 5.6 | H179: 4.4 | I179: 8.8 | J179: 96.4 | K179: 697 | L179: 13.28
D180: хлеб | E180: Хлеб пшеничный | F180: 40 | G180: 3.06 | H180: 0.33 | I180: 19.66 | J180: 93.73 | K180: пром. | L180: 2.48
D181: фрукты
D184: итого | F184: =SUM(F177:F183) -> 500 | G184: =SUM(G177:G183) -> 21.61 | H184: 14.04 | I184: 100.84 | J184: 612.36 | L184: =SUM(L177:L183) -> 44.02
A185: =A177 -> 2 | B185: =B177 -> 5 | C185: Обед | D185: закуска | E185: Салат из свежих помидоров и огурцов | F185: 60 | G185: 0.6 | H185: 3.1 | I185: 1.8 | J185: 37.6 | K185: 20 | L185: 9.22
D186: 1 блюдо | E186: Суп с макаронными изделиями | F186: 200 | G186: 5.16 | H186: 2.78 | I186: 18.5 | J186: 119.6 | K186: 140 | L186: 19.55
D187: 2 блюдо | E187: Гуляш | F187: 90 | G187: 15.18 | H187: 14.73 | I187: 3.6 | J187: 208.8 | K187: 437 | L187: 58.56
D188: гарнир | E188: Рис отварной | F188: 150 | G188: 3.7 | H188: 4.8 | I188: 36.5 | J188: 203.5 | K188: 512 | L188: 11.58
D189: напиток | E189: Компот из свежих плодов | F189: 200 | G189: 0.15 | H189: 0.14 | I189: 9.93 | J189: 41.5 | K189: 631 | L189: 8.73
D190: хлеб бел. | E190: Хлеб пшеничный | F190: 60 | G190: 4.6 | H190: 0.5 | I190: 29.5 | J190: 140.6 | K190: пром. | L190: 3.72
D191: хлеб черн. | E191: Хлеб ржаной | F191: 40 | G191: 2.66 | H191: 0.53 | I191: 13.33 | J191: 68.26 | K191: пром. | L191: 2.8
D194: итого | F194: =SUM(F185:F193) -> 800 | G194: =SUM(G185:G193) -> 32.05 | H194: 26.58 | I194: 113.16 | J194: 819.86 | L194: =SUM(L185:L193) -> 114.16
A195: =A177 -> 2 | B195: =B177 -> 5 | C195: Итого за день: | F195: =F184+F194 -> 1300 | G195: =G184+G194 -> 53.66 | H195: =H184+H194 -> 40.62 | I195: =I184+I194 -> 214 | J195: =J184+J194 -> 1432.22 | L195: 158.18
C196: Среднее значение за период: | F196: =(F24+F43+F62+F81+F100+F119+F138+F157+F176+F195)/(IF(F24=0,0,1)+IF(F43=0,0,1)+IF(F62=0,0,1)+IF(F81=0,0,1)+IF(F100=0,0,1)+IF(F119=0,0,1)+IF(F138=0,0,1)+IF(F157=0,0,1)+IF(F176=0,0,1)+IF(F195=0,0,1)) -> 1297.5 | G196: =(G24+G43+G62+G81+G100+G119+G138+G157+G176+G195)/(IF(G24=0,0,1)+IF(G43=0,0,1)+IF(G62=0,0,1)+IF(G81=0,0,1)+IF(G100=0,0,1)+IF(G119=0,0,1)+IF(G138=0,0,1)+IF(G157=0,0,1)+IF(G176=0,0,1)+IF(G195=0,0,1)) -> 53.737 | H196: 41.975 | I196: 186.584 | J196: 1362.597
